bitfinex-derivatives/quotes_BTCF0:USTF0_20241224
["timestamp","ask_amount","ask_price","bid_price","bid_amount"]
[1735060289205,0.12034024,98835.0,98810.0,0.050644]
[1735060289405,0.12034024,98835.0,98825.0,0.3608]
[1735060289909,0.12034024,98836.0,98825.0,0.3608]
[1735060290513,0.002,98835.0,98825.0,0.3618]
[1735060291019,0.002,98835.0,98825.0,0.3608]
[1735060291224,0.002,98836.0,98825.0,0.3618]
[1735060291722,0.050632,98835.0,98825.0,0.3618]
[1735060291923,0.01577438,98827.0,98825.0,0.3618]
[1735060292518,0.050634,98830.0,98825.0,0.3618]
[1735060292724,0.002,98836.0,98825.0,0.3618]
[1735060293022,0.050632,98835.0,98825.0,0.3618]
[1735060293622,0.1086,98840.0,98833.0,0.3608]
[1735060293924,0.12034024,98843.0,98836.0,0.050631]
[1735060295220,0.3608,98849.0,98833.0,0.3618]
[1735060295221,0.050625,98848.0,98833.0,0.3618]
[1735060295618,0.36928223,98849.0,98836.0,0.001]
[1735060295826,0.050627,98844.0,98836.0,0.001]
[1735060296018,0.050627,98844.0,98836.0,0.002]
[1735060296816,0.36928223,98849.0,98836.0,0.002]
[1735060297020,0.36928223,98849.0,98837.0,0.30113939]
[1735060297222,0.00632775,98848.0,98837.0,0.30113939]
[1735060297416,0.00632775,98847.0,98837.0,0.30113939]
[1735060297827,0.00632775,98846.0,98837.0,0.30113939]
[1735060298126,0.00632775,98845.0,98837.0,0.30113939]
[1735060298327,0.00632775,98844.0,98837.0,0.30113939]
[1735060298627,0.00632775,98843.0,98837.0,0.30113939]
[1735060299123,0.00632775,98842.0,98837.0,0.30213939]
[1735060299330,0.00632775,98841.0,98837.0,0.30213939]
[1735060299723,0.00632775,98840.0,98837.0,0.30313939]
[1735060299919,0.00632775,98839.0,98837.0,0.30313939]
[1735060300223,0.00632775,98838.0,98837.0,0.30313939]
[1735060301014,0.01341344,98838.0,98837.0,0.30313939]
[1735060301226,0.01341344,98838.0,98837.0,0.30213939]
[1735060301414,0.01341344,98838.0,98837.0,0.30313939]
[1735060301820,0.06404344,98838.0,98837.0,0.30313939]
[1735060302020,0.06404344,98838.0,98837.0,0.002]
[1735060303924,0.43344739,98838.0,98837.0,0.002]
[1735060304123,0.050634,98831.0,98830.0,0.30113939]
[1735060304423,0.06404744,98831.0,98830.0,0.30113939]
[1735060304631,0.06404744,98831.0,98818.0,0.30113939]
[1735060304932,0.1311169,98830.0,98818.0,0.30113939]
[1735060305223,0.050635,98828.0,98818.0,0.30113939]
[1735060305427,0.050638,98823.0,98818.0,0.30113939]
[1735060305632,0.0185169,98822.0,98818.0,0.30113939]
[1735060305826,0.02484465,98821.0,98808.0,0.36929866]
[1735060306028,0.0185169,98820.0,98808.0,0.36929866]
[1735060306229,0.02484465,98819.0,98808.0,0.36929866]
[1735060306424,0.02484465,98818.0,98808.0,0.36929866]
[1735060306731,0.0185169,98817.0,98808.0,0.36929866]
[1735060306931,0.0185169,98816.0,98808.0,0.36929866]
[1735060307129,0.02484465,98815.0,98808.0,0.36929866]
[1735060307322,0.050643,98813.0,98808.0,0.3608]
[1735060307523,0.0185169,98812.0,98808.0,0.3608]
[1735060307827,0.0185169,98811.0,98808.0,0.3608]
[1735060308033,0.02484465,98810.0,98808.0,0.3608]
[1735060308235,0.0185169,98809.0,98808.0,0.3608]
[1735060308419,0.02482579,98809.0,98808.0,0.3608]
[1735060309331,0.02582579,98809.0,98808.0,0.3608]
[1735060310339,0.02075111,98809.0,98808.0,0.3608]
[1735060310540,0.02708071,98809.0,98808.0,0.3608]
[1735060310927,0.02175111,98809.0,98808.0,0.3608]
[1735060311128,0.02808071,98809.0,98808.0,0.3608]
[1735060312939,0.04384994,98809.0,98808.0,0.3608]
[1735060313239,0.02808071,98809.0,98808.0,0.3608]
[1735060314740,0.04384889,98809.0,98808.0,0.3608]
[1735060314942,0.02808071,98809.0,98808.0,0.3608]
[1735060315528,0.02808071,98809.0,98808.0,0.66193939]
[1735060315938,0.12034024,98840.0,98808.0,0.66193939]
[1735060316145,0.12034024,98840.0,98824.0,0.3608]
[1735060316441,0.12034024,98840.0,98825.0,0.1098]
[1735060316647,0.050629,98841.0,98825.0,0.1098]
[1735060317446,0.05163,98840.0,98825.0,0.1098]
[1735060318146,0.05063,98839.0,98825.0,0.1098]
[1735060318640,0.050636,98828.0,98824.0,0.3618]
[1735060318834,0.050636,98828.0,98824.0,0.3608]
[1735060319036,0.050636,98826.0,98825.0,0.001]
[1735060319333,1.550636,98826.0,98825.0,0.001]
[1735060319536,0.11838427,98840.0,98825.0,0.001]
[1735060319842,0.050634,98830.0,98825.0,0.001]
[1735060320043,0.050636,98827.0,98825.0,0.001]
[1735060320638,0.3342,98839.0,98825.0,0.001]
[1735060320843,0.411436,98826.0,98825.0,0.001]
[1735060321044,0.772236,98826.0,98825.0,0.001]
[1735060322036,0.050637,98825.0,98817.0,0.24096408]
[1735060322735,0.411436,98826.0,98825.0,0.001]
[1735060323240,0.3608,98826.0,98816.0,0.60176408]
[1735060323438,0.050639,98821.0,98817.0,0.001]
[1735060323647,0.05064,98820.0,98817.0,0.001]
[1735060324036,0.00632945,98819.0,98817.0,0.001]
[1735060324447,0.00632945,98818.0,98817.0,0.001]
[1735060325036,0.00632945,98818.0,98816.0,0.65336508]
[1735060325236,0.00632945,98818.0,98816.0,0.65240508]
[1735060325447,0.00632945,98817.0,98816.0,0.65240508]
[1735060325943,0.01847297,98817.0,98816.0,0.65240508]
[1735060326242,0.01847297,98817.0,98816.0,0.412441]
[1735060326840,0.02047297,98817.0,98816.0,0.412441]
[1735060327241,0.01261635,98823.0,98816.0,0.412441]
[1735060327434,0.12034024,98841.0,98823.0,0.050638]
[1735060327639,0.12034024,98841.0,98834.0,0.3608]
[1735060327944,0.00758136,98840.0,98834.0,0.3608]
[1735060328143,0.00733982,98839.0,98834.0,0.3608]
[1735060328340,0.00733982,98838.0,98834.0,0.3608]
[1735060328537,0.00733982,98837.0,98834.0,0.3608]
[1735060328740,0.00733982,98836.0,98834.0,0.3608]
[1735060328938,0.00733982,98835.0,98834.0,0.3618]
[1735060329234,0.00878669,98848.0,98834.0,0.3618]
[1735060329235,0.15139316,98856.0,98839.0,0.05063]
[1735060329437,0.41141,98879.0,98834.0,0.412432]
[1735060329438,0.02197397,98909.0,98859.0,0.11838427]
[1735060329637,0.00866393,98893.0,98879.0,0.772209]
[1735060329849,0.11842539,98890.0,98879.0,0.7216]
[1735060330238,4.112e-05,98890.0,98879.0,0.7216]
[1735060330433,1.5,98886.0,98879.0,0.7216]
[1735060331635,0.0157205,98880.0,98879.0,0.7216]
[1735060331835,0.0157205,98880.0,98879.0,0.7226]
[1735060332336,4.112e-05,98890.0,98879.0,0.7226]
[1735060332337,0.0157205,98881.0,98879.0,0.7226]
[1735060332645,0.11842539,98890.0,98879.0,0.7216]
[1735060332834,0.1138,98889.0,98881.0,0.3608]
[1735060333034,1.550608,98882.0,98881.0,0.3608]
[1735060333443,0.050619,98861.0,98856.0,0.60230217]
[1735060333647,0.05062,98858.0,98856.0,0.60230217]
[1735060333850,0.1151,98857.0,98856.0,0.60230217]
[1735060334442,1.6151,98857.0,98856.0,0.60230217]
[1735060334842,1.6151,98857.0,98856.0,0.36231719]
[1735060335053,0.1151,98857.0,98856.0,0.36231719]
[1735060335247,0.05062,98858.0,98856.0,0.36231719]
[1735060335855,0.01570218,98857.0,98856.0,0.36231719]
[1735060336757,0.3608,98857.0,98856.0,0.00151719]
[1735060336946,0.3608,98857.0,98839.0,0.00072]
[1735060337147,0.050626,98847.0,98839.0,0.00072]
[1735060337348,0.050629,98840.0,98839.0,0.00072]
[1735060337549,0.050633,98833.0,98832.0,0.24094498]
[1735060337850,0.06220579,98833.0,98832.0,0.0987527]
[1735060338050,0.050633,98833.0,98832.0,0.0987527]
[1735060338753,0.050633,98833.0,98820.0,0.3608]
[1735060338754,0.050637,98826.0,98820.0,0.3608]
[1735060338953,0.01157279,98825.0,98820.0,0.3608]
[1735060339156,0.050639,98822.0,98820.0,0.3608]
[1735060339354,0.01157279,98821.0,98820.0,0.3608]
[1735060340164,0.01158025,98821.0,98820.0,0.3608]
[1735060340649,0.24318025,98821.0,98820.0,0.3608]
[1735060340960,0.24950716,98821.0,98820.0,0.3608]
[1735060341459,0.14215275,98821.0,98820.0,0.3608]
[1735060342158,0.15122683,98821.0,98820.0,0.3608]
[1735060342961,0.15122683,98821.0,98820.0,0.3618]
[1735060343461,0.02515275,98821.0,98820.0,0.3618]
[1735060343853,0.01882584,98821.0,98820.0,0.3618]
[1735060344360,0.00724559,98821.0,98820.0,0.3618]
[1735060345562,0.00724559,98821.0,98820.0,0.3608]
[1735060346058,0.00726263,98821.0,98820.0,0.3608]
[1735060346561,0.01571291,98825.0,98824.0,0.050637]
[1735060346760,0.01571291,98825.0,98824.0,0.411437]
[1735060346955,0.00726204,98835.0,98834.0,0.050632]
[1735060347161,0.00726204,98835.0,98834.0,0.411432]
[1735060347363,0.01571291,98845.0,98834.0,0.411432]
[1735060347663,0.00726204,98844.0,98836.0,0.050631]
[1735060347961,0.01571291,98852.0,98843.0,0.3608]
[1735060348148,0.0072628,98851.0,98843.0,0.3608]
[1735060348348,0.0072628,98850.0,98843.0,0.3608]
[1735060348553,0.0072628,98849.0,98843.0,0.3608]
[1735060348861,0.0072628,98848.0,98844.0,0.1136]
[1735060349154,0.0072628,98847.0,98844.0,0.1136]
[1735060349361,0.0072628,98846.0,98844.0,0.1136]
[1735060349562,0.0072628,98845.0,98844.0,0.1136]
[1735060350162,0.0072628,98845.0,98844.0,0.1146]
[1735060350560,0.0072628,98845.0,98844.0,0.1136]
[1735060350749,0.0072628,98845.0,98844.0,0.001]
[1735060350750,0.0578898,98845.0,98844.0,0.001]
[1735060351351,0.0072628,98845.0,98844.0,0.001]
[1735060351756,0.0072628,98845.0,98844.0,0.051627]
[1735060352162,0.00725107,98845.0,98844.0,0.051627]
[1735060352363,0.00725107,98854.0,98844.0,0.051627]
[1735060352565,0.01571291,98859.0,98853.0,0.3608]
[1735060352866,0.00725283,98858.0,98856.0,0.3608]
[1735060353057,0.00725283,98857.0,98856.0,0.3608]
[1735060353254,0.00725283,98864.0,98856.0,0.3608]
[1735060353454,0.00725283,98863.0,98856.0,0.3608]
[1735060353658,0.00725283,98862.0,98856.0,0.3608]
[1735060353867,0.00724087,98863.0,98856.0,0.3608]
[1735060354068,0.00724087,98862.0,98856.0,0.3608]
[1735060354265,0.02295378,98864.0,98856.0,0.3608]
[1735060354461,0.00724087,98863.0,98856.0,0.3608]
[1735060354661,0.00724087,98862.0,98856.0,0.3608]
[1735060354863,0.00724087,98861.0,98856.0,0.3608]
[1735060355062,0.00724087,98860.0,98856.0,0.3608]
[1735060355363,0.06632591,98872.0,98856.0,0.411421]
[1735060355364,0.00724087,98859.0,98856.0,0.411421]
[1735060355670,0.00723093,98858.0,98857.0,0.050621]
[1735060355864,0.00723093,98871.0,98856.0,0.3608]
[1735060356068,0.01571291,98873.0,98871.0,0.050613]
[1735060356259,0.00723028,98872.0,98871.0,0.050613]
[1735060356465,0.01571291,98877.0,98870.0,0.72256]
[1735060356758,0.00723028,98876.0,98875.0,0.050611]
[1735060357072,0.01571291,98881.0,98878.0,0.050609]
[1735060357271,0.01571291,98881.0,98880.0,0.3608]
[1735060357573,0.01355719,98886.0,98880.0,0.3608]
[1735060357767,0.00723028,98885.0,98880.0,0.3608]
[1735060357967,0.01355719,98884.0,98880.0,0.3608]
[1735060358268,0.00632691,98884.0,98880.0,0.3608]
[1735060358571,0.01354293,98883.0,98880.0,0.3608]
[1735060358772,0.00721602,98882.0,98880.0,0.3608]
[1735060358972,0.00721602,98881.0,98880.0,0.3608]
[1735060359271,0.02508856,98881.0,98880.0,0.3618]
[1735060360064,0.02508856,98881.0,98880.0,0.3608]
[1735060360259,0.02508856,98881.0,98880.0,0.3618]
[1735060361278,0.02509112,98881.0,98880.0,0.3618]
[1735060361978,0.02509112,98881.0,98880.0,0.412409]
[1735060362169,0.02509112,98881.0,98880.0,0.411409]
[1735060362370,0.01354391,98881.0,98880.0,0.418409]
[1735060362574,0.02509112,98881.0,98880.0,0.418409]
[1735060362872,0.02509112,98881.0,98880.0,0.420409]
[1735060363370,0.02509112,98881.0,98880.0,0.411409]
[1735060363574,0.01354391,98881.0,98880.0,0.420409]
[1735060363970,0.01354391,98881.0,98880.0,0.425409]
[1735060364372,0.01354332,98881.0,98880.0,0.425409]
[1735060364672,0.01354332,98881.0,98880.0,0.424409]
[1735060364876,0.01354332,98881.0,98880.0,0.415409]
[1735060365071,0.01354332,98881.0,98880.0,0.424409]
[1735060367375,0.00632691,98881.0,98880.0,0.424409]
[1735060368378,0.00632691,98881.0,98880.0,0.423409]
[1735060368889,0.00632691,98881.0,98880.0,0.424409]
[1735060369980,0.01566477,98889.0,98880.0,0.3738]
[1735060370180,0.01566477,98889.0,98888.0,0.411405]
[1735060370474,0.01566477,98892.0,98888.0,0.411405]
[1735060370672,0.01566477,98889.0,98888.0,0.411405]
[1735060371065,0.00721641,98897.0,98888.0,0.3608]
[1735060371270,0.00721641,98896.0,98888.0,0.3608]
[1735060371475,0.00721641,98895.0,98888.0,0.3608]
[1735060371670,0.00721641,98894.0,98888.0,0.3608]
[1735060371878,0.00721641,98898.0,98888.0,0.3608]
[1735060372078,0.00721641,98897.0,98888.0,0.3608]
[1735060372268,0.00721641,98896.0,98888.0,0.3608]
[1735060372475,0.00721641,98895.0,98888.0,0.3628]
[1735060372674,0.00721641,98894.0,98888.0,0.3678]
[1735060372875,0.00721512,98899.0,98888.0,0.3678]
[1735060373084,0.00721512,98898.0,98888.0,0.3628]
[1735060373276,0.00721512,98897.0,98888.0,0.3678]
[1735060373472,0.1,98900.0,98888.0,0.3678]
[1735060373473,0.00721512,98896.0,98888.0,0.3678]
[1735060373673,0.00721512,98889.0,98888.0,0.3658]
[1735060373979,0.00721512,98889.0,98888.0,0.37691462]
[1735060374569,0.01875932,98889.0,98888.0,0.37691462]
[1735060374774,0.01875932,98889.0,98888.0,0.37191462]
[1735060374971,0.01875932,98889.0,98888.0,0.37691462]
[1735060375367,0.01875932,98889.0,98888.0,0.3668]
[1735060375575,0.12675932,98889.0,98888.0,0.3668]
[1735060375871,0.23445932,98889.0,98888.0,0.3668]
[1735060376071,0.12675932,98889.0,98888.0,0.3658]
[1735060376282,0.12675932,98889.0,98888.0,0.3648]
[1735060376486,0.13621978,98889.0,98888.0,0.3648]
[1735060378076,0.02821978,98889.0,98888.0,0.3618]
[1735060378279,0.03454443,98889.0,98888.0,0.3638]
[1735060379171,0.03454443,98889.0,98888.0,0.3618]
[1735060379377,0.03454443,98889.0,98888.0,0.3668]
[1735060379378,0.02300023,98889.0,98888.0,0.3668]
[1735060379583,0.0346076,98889.0,98888.0,0.005]
[1735060379778,0.01578511,98889.0,98888.0,0.002]
[1735060379986,0.03461075,98889.0,98888.0,0.00113906]
[1735060380582,0.02302574,98889.0,98888.0,0.36193906]
[1735060381387,0.02302574,98889.0,98888.0,0.3608]
[1735060381587,0.02302574,98889.0,98888.0,0.3648]
[1735060382178,0.02302574,98889.0,98888.0,0.3638]
[1735060382378,0.02302574,98889.0,98888.0,0.3658]
[1735060382780,0.02302574,98889.0,98888.0,0.3628]
[1735060382982,0.05061,98879.0,98868.0,0.30113939]
[1735060383186,0.3408,98872.0,98868.0,0.30113939]
[1735060383381,0.00724063,98871.0,98868.0,0.30113939]
[1735060383692,0.00724063,98870.0,98868.0,0.30113939]
[1735060383892,0.00724063,98869.0,98868.0,0.30113939]
[1735060384084,0.00724063,98869.0,98868.0,0.30613939]
[1735060384388,0.0133811,98869.0,98868.0,0.30613939]
[1735060384993,0.10404049,98869.0,98868.0,0.30613939]
[1735060385285,0.10404049,98869.0,98868.0,0.011]
[1735060385885,0.10404049,98869.0,98868.0,0.059615]
[1735060386479,0.02558211,98869.0,98868.0,0.06896037]
[1735060386787,0.02558211,98869.0,98868.0,0.06796037]
[1735060387380,0.02615059,98869.0,98868.0,0.06796037]
[1735060389089,0.02615059,98869.0,98868.0,0.36796037]
[1735060389288,0.01260973,98881.0,98879.0,0.050609]
[1735060389491,0.1,98900.0,98880.0,0.3608]
[1735060389690,0.10911897,98900.0,98889.0,0.3608]
[1735060390385,0.22750324,98900.0,98889.0,0.3608]
[1735060390697,0.00404112,98890.0,98889.0,0.411404]
[1735060391797,4.112e-05,98890.0,98889.0,0.415404]
[1735060392103,0.00204112,98890.0,98889.0,0.415404]
[1735060392293,0.00204112,98890.0,98889.0,0.411404]
[1735060392598,0.00204112,98890.0,98889.0,0.415404]
[1735060392799,4.112e-05,98890.0,98889.0,0.415404]
[1735060392989,4.112e-05,98890.0,98889.0,0.417404]
[1735060393384,0.1,98900.0,98899.0,0.050599]
[1735060393893,0.09065939,98913.0,98899.0,0.050599]
[1735060394093,0.09065939,98913.0,98912.0,0.411392]
[1735060394399,0.1182,98926.0,98916.0,0.05059]
[1735060394400,0.13028685,98917.0,98916.0,0.05059]
[1735060394697,0.12104669,98917.0,98916.0,0.05059]
[1735060395590,0.12404669,98917.0,98916.0,0.05059]
[1735060395785,0.003,98917.0,98916.0,0.05059]
[1735060396894,0.009,98917.0,98916.0,0.05159]
[1735060397496,0.01532245,98917.0,98916.0,0.05159]
[1735060399196,0.02716529,98917.0,98916.0,0.05159]
[1735060401202,0.03456858,98917.0,98916.0,0.05159]
[1735060402406,0.03455114,98917.0,98916.0,0.05159]
[1735060405606,0.03454258,98917.0,98916.0,0.05159]
[1735060405904,0.03454258,98917.0,98916.0,0.001]
[1735060408710,0.3332,98954.0,98935.0,0.050581]
[1735060409003,0.3332,98954.0,98917.0,0.050591]
[1735060409004,0.11838427,98950.0,98939.0,0.3608]
[1735060409500,0.11838427,98950.0,98939.0,0.41138]
[1735060409902,0.11838427,98950.0,98939.0,0.3608]
[1735060410598,0.12438427,98950.0,98939.0,0.3618]
[1735060411006,0.17495827,98950.0,98939.0,0.3618]
[1735060411809,0.17495827,98950.0,98939.0,0.3628]
[1735060412113,0.050576,98947.0,98939.0,0.3628]
[1735060412406,0.050576,98946.0,98939.0,0.3628]
[1735060413404,0.050578,98944.0,98939.0,0.3628]
[1735060414011,0.050578,98943.0,98939.0,0.3628]
[1735060414200,0.050578,98943.0,98939.0,0.3618]
[1735060414402,0.050578,98942.0,98939.0,0.3628]
[1735060414802,0.1275847,98950.0,98939.0,0.3628]
[1735060415105,0.050579,98941.0,98939.0,0.3628]
[1735060415611,0.050579,98941.0,98939.0,0.3618]
[1735060415804,0.050579,98941.0,98939.0,0.3628]
[1735060416310,0.050579,98941.0,98939.0,0.002]
[1735060416716,0.0063217,98940.0,98939.0,0.002]
[1735060417306,0.0063217,98940.0,98939.0,0.00011256]
[1735060418010,0.0063217,98940.0,98939.0,0.00111256]
[1735060418606,0.01770368,98940.0,98939.0,0.00111256]
[1735060419120,0.050583,98932.0,98931.0,0.3608]
[1735060419311,0.06828668,98932.0,98931.0,0.3608]
[1735060420614,0.0073217,98932.0,98931.0,0.3618]
[1735060420813,0.07641179,98932.0,98931.0,0.3618]
[1735060421002,0.07941179,98932.0,98931.0,0.3628]
[1735060422508,0.02882879,98932.0,98931.0,0.3628]
[1735060423011,0.02882879,98932.0,98931.0,0.34004159]
[1735060423607,0.02881519,98932.0,98931.0,0.34004159]
[1735060426008,0.02881519,98932.0,98931.0,0.64053118]
[1735060426607,0.15081729,98963.0,98931.0,0.94053118]
[1735060426803,0.37027803,98958.0,98948.0,0.3608]
[1735060427003,0.37027803,98958.0,98949.0,0.1053]
[1735060427205,0.42084803,98958.0,98949.0,0.1053]
[1735060427410,0.050571,98957.0,98949.0,0.1053]
[1735060427614,0.37027803,98958.0,98949.0,0.1053]
[1735060427812,0.37227803,98958.0,98949.0,0.1053]
[1735060428208,0.37327803,98958.0,98949.0,0.1063]
[1735060428513,0.37327803,98958.0,98950.0,0.24031521]
[1735060428514,0.37127803,98958.0,98950.0,0.24031521]
[1735060428706,0.002,98957.0,98950.0,0.24031521]
[1735060429409,0.11838427,98980.0,98950.0,0.24031521]
[1735060429410,0.3608,98989.0,98971.0,0.050563]
[1735060429616,0.3608,98989.0,98972.0,0.3608]
[1735060429811,0.3608,98989.0,98972.0,0.477]
[1735060430009,0.15081729,98978.0,98973.0,0.050562]
[1735060430208,0.15081729,98978.0,98977.0,0.05056]
[1735060430405,0.15081729,98978.0,98972.0,0.47796]
[1735060430603,0.01259007,98974.0,98972.0,0.527563]
[1735060430808,0.01259007,98976.0,98972.0,0.527563]
[1735060431003,0.01259007,98977.0,98972.0,0.5380209]
[1735060431204,0.050562,98975.0,98973.0,0.001]
[1735060431414,0.15081729,98978.0,98973.0,0.001]
[1735060431916,0.46132001,99000.0,98973.0,0.24031521]
[1735060432116,0.46132001,99000.0,98979.0,0.11838427]
[1735060432316,0.46132001,99000.0,98980.0,0.1155]
[1735060432614,0.050552,98994.0,98980.0,0.2301]
[1735060432816,0.050558,98983.0,98980.0,0.1146]
[1735060433018,0.050553,98993.0,98972.0,0.3618]
[1735060433213,0.050559,98981.0,98979.0,0.11838427]
[1735060433405,0.050559,98981.0,98973.0,0.001]
[1735060433609,0.01257268,98974.0,98973.0,0.001]
[1735060434116,0.050562,98975.0,98973.0,0.001]
[1735060434319,0.15081729,98997.0,98972.0,0.3608]
[1735060434320,0.050562,98974.0,98972.0,0.3608]
[1735060434714,0.050567,98965.0,98964.0,0.11838427]
[1735060434909,0.050568,98963.0,98957.0,0.2252]
[1735060435111,0.00631938,98965.0,98957.0,0.2252]
[1735060435312,0.3608,98977.0,98959.0,0.05057]
[1735060435510,0.3608,98977.0,98967.0,0.11838427]
[1735060435705,0.3608,98977.0,98972.0,0.050563]
[1735060435913,0.15085845,98990.0,98973.0,0.109]
[1735060436117,0.15085845,98990.0,98973.0,0.06476224]
[1735060436319,0.15085845,98990.0,98979.0,0.11838427]
[1735060436619,0.01172658,98988.0,98980.0,0.1056]
[1735060436820,0.050558,98982.0,98980.0,0.1056]
[1735060437013,0.01172658,98981.0,98980.0,0.07400492]
[1735060437209,0.04013285,98981.0,98980.0,0.07400492]
[1735060437513,0.01172658,98981.0,98980.0,0.07400492]
[1735060438314,0.01172658,98981.0,98980.0,0.07500492]
[1735060438621,0.0189949,98981.0,98980.0,0.07500492]
[1735060439214,0.0189949,98981.0,98980.0,0.002]
[1735060443418,0.3797949,98981.0,98980.0,0.002]
[1735060443720,0.3797949,98981.0,98940.0,0.00069]
[1735060443721,0.05057,98962.0,98957.0,0.00965449]
[1735060443937,0.43036055,98962.0,98957.0,0.00965449]
[1735060444119,0.050572,98958.0,98957.0,0.00965449]
[1735060444325,0.075882,98958.0,98957.0,0.00965449]
[1735060444629,0.075882,98958.0,98956.0,0.22624184]
[1735060444818,0.13641,98957.0,98956.0,0.22624184]
[1735060445211,0.13641,98957.0,98948.0,0.30039401]
[1735060445412,0.02531,98956.0,98948.0,0.30039401]
[1735060445729,0.3608,98982.0,98944.0,0.3608]
[1735060445730,0.02531,98955.0,98954.0,0.050574]
[1735060445926,0.02537137,98955.0,98954.0,0.411374]
[1735060446223,0.02537137,98955.0,98954.0,0.3608]
[1735060447012,0.02637137,98955.0,98954.0,0.3608]
[1735060449725,0.02637758,98955.0,98954.0,0.3608]
[1735060450422,0.07695058,98955.0,98954.0,0.3608]
[1735060450924,0.38717758,98955.0,98944.0,0.3608]
[1735060451117,0.3608,98947.0,98942.0,0.30039401]
[1735060451317,0.01905813,98946.0,98942.0,0.30039401]
[1735060451521,0.02537758,98945.0,98942.0,0.30039401]
[1735060451713,0.01905813,98944.0,98942.0,0.30039401]
[1735060451919,0.01905813,98943.0,98942.0,0.31003868]
[1735060452129,0.04110298,98943.0,98942.0,0.00964467]
[1735060452328,0.04110298,98943.0,98940.0,0.00069]
[1735060452520,0.01905813,98942.0,98940.0,0.00069]
[1735060452717,0.02540852,98941.0,98940.0,0.00069]
[1735060452918,0.35260852,98941.0,98940.0,0.00069]
[1735060453119,0.02540852,98941.0,98940.0,0.00069]
[1735060453330,0.02540852,98941.0,98940.0,0.051273]
[1735060454016,0.04113835,98941.0,98940.0,0.00069]
[1735060454413,0.02540852,98941.0,98940.0,0.00069]
[1735060455522,0.02539259,98941.0,98940.0,0.00069]
[1735060457717,0.07597459,98941.0,98940.0,0.00069]
[1735060458935,0.02539259,98941.0,98934.0,0.3608]
[1735060459132,0.050585,98935.0,98934.0,0.3608]
[1735060459319,0.06965814,98935.0,98934.0,0.3608]
[1735060459631,0.02539259,98935.0,98934.0,0.3608]
[1735060459831,0.02539259,98935.0,98934.0,0.37051072]
[1735060460514,0.02639259,98935.0,98934.0,0.37051072]
[1735060460718,0.02639259,98935.0,98934.0,0.37151072]
[1735060461033,0.07697759,98935.0,98934.0,0.37151072]
[1735060461528,0.05790445,98935.0,98934.0,0.37051072]
[1735060461733,0.0263812,98935.0,98934.0,0.37051072]
[1735060462031,0.01463767,98935.0,98934.0,0.37051072]
[1735060462224,0.02534682,98935.0,98934.0,0.37251072]
[1735060462828,0.02634682,98935.0,98934.0,0.37051072]
[1735060463633,0.02634682,98935.0,98934.0,0.3608]
[1735060463932,0.0252805,98935.0,98934.0,0.3608]
[1735060465434,0.0262805,98935.0,98934.0,0.3608]
[1735060466032,0.0252805,98935.0,98934.0,0.3608]
[1735060467121,0.050586,98934.0,98926.0,0.00942729]
[1735060467318,0.01896105,98933.0,98925.0,0.31126082]
[1735060467541,0.050586,98934.0,98925.0,0.31126082]
[1735060467542,0.3608,98926.0,98925.0,0.30039401]
[1735060467831,0.02529446,98926.0,98925.0,0.11745083]
[1735060468831,0.02529446,98926.0,98924.0,0.050591]
[1735060468832,0.02529446,98926.0,98924.0,0.23064501]
[1735060469134,0.04103064,98925.0,98924.0,0.18005401]
[1735060469832,0.02529446,98925.0,98924.0,0.18105401]
[1735060470036,0.02529446,98925.0,98924.0,0.001]
[1735060472140,0.02529446,98925.0,98921.0,0.3608]
[1735060472335,0.02529446,98924.0,98921.0,0.3608]
[1735060472638,0.02529446,98923.0,98921.0,0.3608]
[1735060472839,0.02529446,98922.0,98921.0,0.3608]
[1735060473233,0.02529446,98922.0,98921.0,0.3628]
[1735060473834,0.02529446,98922.0,98921.0,0.3638]
[1735060474339,0.02535314,98922.0,98921.0,0.3638]
[1735060474537,0.02535314,98922.0,98921.0,0.3628]
[1735060474840,0.02535314,98922.0,98921.0,0.3638]
[1735060475229,0.02535314,98922.0,98921.0,0.3618]
[1735060475424,0.02535314,98922.0,98921.0,0.3638]
[1735060475833,0.02635314,98922.0,98921.0,0.3618]
[1735060476339,0.02635314,98922.0,98921.0,0.3608]
[1735060476935,0.02531352,98922.0,98921.0,0.3608]
[1735060477332,0.050594,98918.0,98917.0,0.0032917]
[1735060477629,0.050594,98918.0,98906.0,0.35905491]
[1735060477630,0.0506,98907.0,98906.0,0.35905491]
[1735060477830,0.43039407,98907.0,98906.0,0.35905491]
[1735060478231,0.43671352,98907.0,98906.0,0.35905491]
[1735060478939,0.38611352,98907.0,98888.0,0.00779636]
[1735060479239,0.01574415,98893.0,98885.0,0.35905491]
[1735060479434,0.01574415,98889.0,98885.0,0.35905491]
[1735060479740,0.01899407,98888.0,98885.0,0.35905491]
[1735060480036,0.01899407,98887.0,98885.0,0.35905491]
[1735060480342,0.01898646,98886.0,98885.0,0.36705491]
[1735060480837,0.01898646,98886.0,98885.0,0.73085491]
[1735060481039,0.11838427,98900.0,98886.0,0.18004994]
[1735060481234,0.1071,98899.0,98886.0,0.18004994]
[1735060482146,0.3608,98903.0,98888.0,0.050609]
[1735060482342,0.1153,98906.0,98890.0,0.050608]
[1735060482541,0.1153,98906.0,98891.0,0.1056]
[1735060482840,0.1153,98906.0,98891.0,0.212]
[1735060483231,0.1153,98906.0,98891.0,0.262608]
[1735060483443,0.1153,98906.0,98893.0,0.411407]
[1735060484944,0.1153,98906.0,98893.0,0.3628]
[1735060485635,0.1153,98906.0,98893.0,0.3668]
[1735060486350,0.01572702,98898.0,98893.0,0.3668]
[1735060486735,0.01572702,98897.0,98893.0,0.3668]
[1735060487647,0.01572702,98896.0,98893.0,0.3668]
[1735060488742,0.1098,98920.0,98893.0,0.3668]
[1735060488743,0.01572702,98895.0,98894.0,0.050606]
[1735060488954,0.050594,98917.0,98893.0,0.3668]
[1735060489139,0.00632368,98912.0,98895.0,0.050605]
[1735060489447,0.00632368,98911.0,98897.0,0.050605]
[1735060489945,0.00632368,98910.0,98894.0,0.006]
[1735060490140,0.00632368,98910.0,98901.0,0.050602]
[1735060490335,0.00632368,98909.0,98902.0,0.411402]
[1735060490537,0.00632368,98908.0,98902.0,0.411402]
[1735060490945,0.01776044,98907.0,98902.0,0.3608]
[1735060491137,0.01776044,98906.0,98902.0,0.3608]